Cogmind - Beta 13 *** ADVENTURER MODE // 2024.05.27 @ 10:33:26 Player: Pyr0 Result: Destroyed by D-53 Grenadier with Mini Grenade Launcher Performance ------------- Evolutions (0) 0 Regions Visited (2) 400 Robots Destroyed (30) 150 Value Destroyed (672) 672 Prototype IDs (3) 60 Alien Tech Used (0) 0 Bonus (0) 0 TOTAL SCORE: 1282 Bonus ------- None Cogmind --------- Core Integrity 0/250 Matter 298/300 Energy 250/250 System Corruption 1% Temperature Cool (0) Movement Walking (190) Ox1 Location -10/Mines Parts ------- > --- POWER (1) -------- Ion Engine > --- PROPULSION (2) --- Aluminum Leg Aluminum Leg > --- UTILITY (2) ------ Large Storage Unit Signal Interpreter > --- WEAPON (2) ------- Small Laser Light Assault Rifle > --- INVENTORY (15) --- Ion Engine Light Ion Engine Aluminum Leg High-capacity Battery (250) High-capacity Matter Pod (200) Structural Scanner Sensor Array Signal Interpreter Seismic Detector Tractor Beam Beam Cannon Assault Rifle Light Assault Rifle Peak State ------------ > --- POWER ------------ Ion Engine > --- PROPULSION ------- Light Treads Light Treads > --- UTILITY ---------- Large Storage Unit Signal Interpreter > --- WEAPON ----------- Small Laser Light Assault Rifle > --- INVENTORY -------- Light Ion Engine Aluminum Leg Aluminum Leg Medium Matter Pod Structural Scanner Sensor Array Signal Interpreter Seismic Detector Tractor Beam Assault Rifle [Rating: 8] Favorites ----------- Power Ion Engine Engine Ion Engine Propulsion Light Treads Treads Light Treads Leg Aluminum Leg Utility Large Storage Unit Device Seismic Detector Storage Large Storage Unit Processor Signal Interpreter Weapon Small Laser Energy Gun Small Laser Ballistic Gun Light Assault Rifle Build | -11 -10 -10 ------- Run | Yrd Mat Min Slots Evolved . | . . . Power . | . . . Propulsion . | . . . Utility . | . . . Weapon . | . . . Parts Attached 18 | 6 7 5 Power 3 | 1 1 1 Engine 3 | 1 1 1 Core . | . . . Reactor . | . . . Propulsion 7 | 2 3 2 Treads 2 | 2 . . Leg 5 | . 3 2 Wheel . | . . . Hover . | . . . Flight . | . . . Utility 4 | 1 3 . Device 1 | . 1 . Storage 2 | 1 1 . Processor 1 | . 1 . Hackware . | . . . Protection . | . . . Artifact . | . . . Weapon 4 | 2 . 2 Energy Gun 2 | 1 . 1 Energy Cannon . | . . . Ballistic Gun 2 | 1 . 1 Ballistic Cannon . | . . . Launcher . | . . . Special Weapon . | . . . Impact Weapon . | . . . Slashing Weapon . | . . . Piercing Weapon . | . . . Special Melee Weapon . | . . . Unidentified Prototypes . | . . . Parts Lost 1 | . . 1 Power 1 | . . 1 Propulsion . | . . . Utility . | . . . Weapon . | . . . Highest Loss Streak 1 | . . 1 To Critical Strikes . | . . . Average Slot Usage (%) 99 | . 99 99 Engine 14 | . 14 14 Treads 13 | . 18 . Leg 14 | . 9 28 Device 3 | . 5 . Storage 14 | . 14 14 Processor 9 | . 8 14 Energy Gun 14 | . 14 14 Ballistic Gun 13 | . 14 13 Naked Turns . | . . . Heaviest Build 28 | 12 28 27 Greatest Support 40 | 40 40 20 Greatest Overweight (x) 1 | . 1 1 Average Overweight (x) . | . . 1 Largest Inventory Capacity 15 | 8 15 15 Average Capacity 13 | 7 13 15 Most Carried 14 | 6 14 14 Average Carried 10 | 5 9 12 Final Capacity 15 | 8 15 15 Final Carried 13 | 6 13 13 Class Distribution -------------------- 90% | Mutant 9% | Scavenger-Mutant Dominant Class ---------------- Mutant | -10/Materials Mutant | -10/Mines Resources | -11 -10 -10 ----------- Run | Yrd Mat Min Matter Collected 794 | 186 503 105 Remotely . | . . . Salvage Created 1019 | . 719 300 Parts 64 | . 55 9 Haulers Intercepted . | . . . Recyclers Shooed . | . . . Parts Field Recycled . | . . . Retrieved Matter . | . . . Parts Self-Destructed . | . . . Prevented . | . . . Kills | -11 -10 -10 ------- Run | Yrd Mat Min Combat Hostiles Destroyed 23 | . 16 7 Guns 23 | . 16 7 Classes Destroyed 5 | . 5 . Worker 1 | . 1 . Recycler 3 | . 2 1 Watcher 3 | . 3 . Swarmer 9 | . 6 3 Grunt 14 | . 10 4 Best Kill Streak 6 | . 6 3 Combat Bots Only 4 | . 4 3 Max Kills in Single Turn 2 | . 2 1 Gunslinging 1 | . 1 . Exploded . | . . . Melee . | . . . Uniques/NPCs Destroyed . | . . . Combat | -11 -10 -10 -------- Run | Yrd Mat Min Hostile Shots Fired 109 | . 66 43 Missed 28 | . 20 8 Damage Taken 861 | . 371 490 Core 250 | . 82 168 Absorbed by Shields . | . . . Ignored by Resistances 268 | . 121 147 Core Remaining (%) 100 | 100 . . Volleys Fired 92 | . 59 33 Largest 2 | . 2 2 Hottest 60 | . 60 60 Shots Fired 182 | . 118 64 Gun 182 | . 118 64 Cannon . | . . . Launcher . | . . . Special . | . . . Kinetic 92 | . 59 33 Thermal 90 | . 59 31 Explosive . | . . . Electromagnetic . | . . . Robot Hit Streak 21 | . 12 21 Robot Miss Streak 2 | . 2 2 Penetration Max . | . . . Secondary Targets 5 | . 4 1 Max Gunslinging Chain 1 | . 1 1 Shots Hit Robots 139 | . 86 53 Core Hits 58 | . 40 18 Critical Kills . | . . . Critical Parts Destroyed . | . . . Critical Strikes . | . . . Melee Attacks . | . . . Impact . | . . . Slashing . | . . . Piercing . | . . . Sneak Attacks . | . . . Combat Hostiles . | . . . Follow-up Attacks . | . . . Damage Inflicted 1326 | . 816 510 Guns 1326 | . 816 510 Cannons . | . . . Explosions . | . . . Melee . | . . . Ramming . | . . . Kinetic 559 | . 337 222 Thermal 767 | . 479 288 Explosive . | . . . Electromagnetic . | . . . Impact . | . . . Slashing . | . . . Piercing . | . . . Highest Corruption 1 | . 1 1 Average Corruption 1 | . 1 1 Corruption Purged . | . . . Corruption Blocked . | . . . Effects 8 | . 5 3 Message Errors 2 | . 2 . Matter Fused 3 | . 1 2 Heat Flow Errors 2 | . 1 1 Data Loss (major) 1 | . 1 . Overload Shots . | . . . Overflow Damage . | . . . Projectiles . | . . . Explosions . | . . . Melee . | . . . Knockbacks . | . . . Impact . | . . . Kinetic . | . . . Secondary . | . . . Self-Inflicted Damage . | . . . Shots . | . . . Rammed . | . . . Targets Rammed . | . . . Kicked . | . . . Crushed . | . . . Highest Temperature 294 | . 294 147 Average Temperature 70 | . 80 50 Received Heat Transfer 414 | . 243 171 Effects 1 | . 1 . Energy Bleed 1 | . 1 . Siege Activations . | . . . Robots Corrupted . | . . . Combat Hostiles . | . . . Parts Fried 4 | . 4 . Impact Corruptions . | . . . Robots Melted . | . . . Combat Hostiles . | . . . Parts Melted 2 | . 1 1 Heat Transferred 1775 | . 1100 675 Parts Sabotaged . | . . . Parts Stolen . | . . . Parts Stripped . | . . . Power Chain Reactions . | . . . Alert | -11 -10 -10 ------- Run | Yrd Mat Min Peak Influence 192 | . 192 120 Initial . | . . . Average 44 | . 51 50 Maximum Alert Level . | . . . Low Security (%) 100 | 100 100 100 Level 1 . | . . . Level 2 . | . . . Level 3 . | . . . Level 4 . | . . . Level 5 . | . . . High Security . | . . . Max Security . | . . . Squads Dispatched 4 | . 4 . Investigation 4 | . 4 . Extermination . | . . . Reinforcement . | . . . Assault . | . . . Garrison . | . . . Intercept . | . . . Searches Triggered . | . . . Construction Impeded . | . . . Haulers Reinforced . | . . . Active Scanning Responses . | . . . Cargo Convoy Interrupts . | . . . Stealth | -11 -10 -10 --------- Run | Yrd Mat Min Distress Signals 3 | . 3 . Communications Jammed . | . . . Distress Signals . | . . . Times Spotted 34 | . 22 12 Peak Tracking Total 4 | . 4 3 Tactical Retreats 3 | . 1 2 Traps | -11 -10 -10 ------- Run | Yrd Mat Min Traps Triggered 2 | . 2 . Indirectly . | . . . Trap Hack Attempts . | . . . Triggered . | . . . Disarmed 4 | . 4 . Reprogrammed 6 | . 6 . Reused 2 | . 2 . Traps Extracted . | . . . Installed . | . . . Triggered 2 | . 2 . Machines | -11 -10 -10 ---------- Run | Yrd Mat Min Machines Disabled . | . . . Max in Single Turn . | . . . Machines Repaired . | . . . Machines Dismantled . | . . . Machines Sabotaged . | . . . Overloaded Fab Kills . | . . . Hacking | -11 -10 -10 --------- Run | Yrd Mat Min Machines Accessed 9 | . 9 . Terminals 7 | . 7 . Fabricators . | . . . Repair Stations 1 | . 1 . Recycling Units 1 | . 1 . Scanalyzers . | . . . Garrison Access . | . . . Total Hacks 35 | . 35 . Successful 21 | . 21 . Failed 14 | . 14 . Catastrophic . | . . . Database Lockouts . | . . . Manual 17 | . 17 . Terminals 30 | . 30 . Fabricators . | . . . Repair Stations 4 | . 4 . Recycling Units 1 | . 1 . Scanalyzers . | . . . Garrison Access . | . . . Terminal Hacks 15 | . 15 . Record 6 | . 6 . Prototype ID Bank 2 | . 2 . Branch Access Points 1 | . 1 . Alert Level 1 | . 1 . Locate Traps 2 | . 2 . Disarm Traps 1 | . 1 . Reprogram Traps 1 | . 1 . Hauler Manifests 1 | . 1 . Fabricator Hacks . | . . . Repair Station Hacks 1 | . 1 . Scan Component 1 | . 1 . Recycling Unit Hacks 1 | . 1 . Report Inventory 1 | . 1 . Scanalyzer . | . . . Garrison Access Hacks . | . . . Unauthorized Hacks 4 | . 4 . Terminals 4 | . 4 . Track 1 | . 1 . Assimilate 3 | . 3 . Fabricators . | . . . Repair Stations . | . . . Recycling Units . | . . . Scanalyzers . | . . . Garrison Access . | . . . Data Cores Recovered . | . . . Used . | . . . Hacking Detections 9 | . 9 . Full Trace Events 6 | . 6 . Feedback Events 1 | . 1 . Corruption 1 | . 1 . Feedback Blocked . | . . . Robot Schematics Acquired . | . . . Robots Built . | . . . Authchips . | . . . Time . | . . . Total Robot Build Rating . | . . . Part Schematics Acquired . | . . . Parts Built . | . . . Authchips . | . . . Time . | . . . Total Part Build Rating . | . . . Parts Repaired . | . . . Time . | . . . Parts Recycled . | . . . Recycled Matter . | . . . Retrieved Matter . | . . . Retrieved Components . | . . . Parts Scanalyzed . | . . . Part Schematics Acquired . | . . . Parts Damaged . | . . . Bothacking | -11 -10 -10 ------------ Run | Yrd Mat Min Used RIF Installer . | . . . Robots Hacked . | . . . Non-combat . | . . . Combat . | . . . Robot Hacks Applied . | . . . Relay Couplers Released . | . . . Fabnet Peak Effective % . | . . . Robots Rewired . | . . . Allies Hacked . | . . . Hacks Repelled . | . . . Allies | -11 -10 -10 -------- Run | Yrd Mat Min Total Allies . | . . . Largest Group . | . . . Highest-Rated Group . | . . . Highest-Rated Ally . | . . . Total Orders . | . . . Ally Attacks . | . . . Total Damage . | . . . Kills . | . . . Allies Corrupted . | . . . Allies Melted . | . . . Intel | -11 -10 -10 ------- Run | Yrd Mat Min Robot Analysis Total . | . . . Derelict Logs Recovered 1 | . . 1 Drone Launches . | . . . Drone Recoveries . | . . . Exploration | -11 -10 -10 ------------- Run | Yrd Mat Min Turns Passed 3216 | 412 2116 688 Spaces Moved 1653 | 249 1098 306 Core 3 | 3 . . Treads 994 | 246 748 . Legs 656 | . 350 306 Wheels . | . . . Hover . | . . . Flight . | . . . Fastest Speed 50 | 50 160 190 Average Speed 171 | 158 169 190 Slowest Speed 190 | 160 190 190 Overloaded Moves . | . . . Propulsion Burnouts . | . . . Robots Hopped . | . . . Cave-ins Triggered . | . . . Exploration Rate (%) 57 | 13 98 62 Regions Visited 2 Branch Regions 1 Pre-discovered Areas 1 | . . 1 Known Exits Taken 1 | . 1 . Unknown Exits Taken 1 | 1 . . Scrap Searched 1 | . . 1 Spaces Dug . | . . . Terrain Destroyed . | . . . Melee . | . . . Projectile . | . . . AOE . | . . . Terrain Rammed . | . . . Walls Destroyed . | . . . Machines Disabled . | . . . Actions | -11 -10 -10 --------- Run | Yrd Mat Min Total 1871 | 266 1248 357 Wait 65 | . 61 4 Move 1651 | 248 1097 306 Hop . | . . . Pick Up 33 | 12 16 5 Fast Attach . | . . . Attach 14 | 6 3 5 Detach . | . . . Swap 4 | . 4 . Drop 12 | . 8 4 Fire 92 | . 59 33 Melee . | . . . Ram . | . . . Kick . | . . . Crush . | . . . Escape Stasis . | . . . Rewire . | . . . Trap . | . . . Miscellaneous . | . . . Route ------- -11/Scrapyard -10/Materials (discovered 6 exits: *Mat x3 / *Min x2 / *Sub) -10/Mines (discovered 2 exits: *Mat x2) History --------- Turn | Location | Event 12 | -11/Scrapyard | Discovered new exit (range 16) 413 | -11/Scrapyard | Entered Materials 414 | -10/Materials | Build established: Mutant 902 | -10/Materials | Discovered new exit (range 13) 1301 | -10/Materials | Discovered new exit (range 10) 1316 | -10/Materials | Identified exit to Materials 1417 | -10/Materials | Identified exit to Mines 1765 | -10/Materials | Discovered exit to Materials (range 10) 2152 | -10/Materials | Discovered exit to Materials (range 15) 2387 | -10/Materials | Discovered new exit (range 6) 2402 | -10/Materials | Identified exit to Subcaves 2529 | -10/Materials | Entered Mines 2774 | -10/Mines | Core integrity fell below 50% 2789 | -10/Mines | Discovered exit to Materials (range 10) 3053 | -10/Mines | Discovered exit to Materials (range 7) 3201 | -10/Mines | Build established: Scavenger-Mutant 3205 | -10/Mines | Assembled infested the area 3214 | -10/Mines | Core integrity fell below 20% 3217 | -10/Mines | Destroyed by D-53 Grenadier with Mini Grenade Launcher Last Messages --------------- Dropped Lgt. Assault Rifle. Acquired Lgt. Assault Rifle. Acquired 10 matter. K-01 Serf cleans the Seismic Survey Station. T-07 Excavator is excavating. K-01 Serf cleans the Seismic Survey Station. T-07 Excavator is excavating. System corrupted: Heat flow error (+123). T-07 Excavator is excavating. K-01 Serf cleans the Seismic Survey Station. T-07 Excavator is excavating. K-01 Serf cleans the Seismic Survey Station. T-07 Excavator is excavating. K-01 Serf collects debris. K-01 Serf cleans the Seismic Survey Station. T-07 Excavator is excavating. ALERT: Infestation in the mines, dispatching Demolisher response squad. C-30 ARC bursts open, deploying its payload. D-53 Grenadier unfolds itself. K-01 Serf collects debris. Map ----- +----------------------------------------------------+ | ?????????????????????????????????????### # | | ???????????????????????????????????????## ## | | ????????????????????????????????????????####? | | ????????????????????????????????????????????? | | ????????????????????????????????????????????? | | ????????????????????????????????????????????? | | ???????????????????????????????????????? #? | | ??????????????????????????????????????? ? | | ??????????????????????????????????????? # | | ????????????????????#?????????????????? # | | ???????????????????? ###???????????????? # | | ????????????????????a ????????????? # | | ???????????????????? ???????????? ? | | ???????????????????? ?????????????# ? | | ???????????###?????? ??????????????# ? | | ??????????## ????## ??????????????# ? | | ??????? ### ??## =% ???????????????# #? | | ?????? ### #???????????????# #? | | ?????? ##?????? ##????# #? | | ?????? ##????? #????# ## | | ????? ##??? #???# | | ??????? #### ????# | | ??????????# ## ### ### | | ???????????# #?? | | ????????????# #?## ### #?? | | ????????????# @ #?????????# #?? | | ????????????## ########### ### | | ?????????????### # % # | | ???????????????## d # < """ # | | ????????????????## # ## d % k """ # | | ?????????????????######## """% # | | ????????????????????????# # | | ???????????????????????## # """ """ # | | ?????????????????#?????# ## """ """%* # | | ?????????????????# ##??# ### """ """ # | | ??????????????????# #?## #### # | | ??????????????????# #### ## """ """ # | | ??????????????????# ## ## ## """ """ # | | ???????????????????## # ## ## """ """ # | | ????????????????????## # | | ?????????????????????## ######## """ """ # | | ??????????????????????###??????# """ """ # | | ???????????????????????????????# """ """ # | | ???????????????????????????????# # | | ???????????????????????????????############## | | ????????????????????????????????????????????? | | ????????????????????????????????????????????? | | ????????????????????????????????????????????? | | ????????????????????????????????????????????? | | ????????????????????????????????????????????? | +----------------------------------------------------+ Best States ------------- Heat Dissipation 25 Energy Generation 10 Energy Capacity 250 Matter Stores 300 Matter Capacity 300 Sight Range 16 Terrain Scan Density 10 Resistance: KI 20 Resistance: TH 20 Resistance: EX 20 Resistance: EM 20 Resistance: I 20 Resistance: S 20 Resistance: P 20 Evasion (%) 40 Recoil Reduction 2 Offensive Hacking 10 Item Schematics ----------------- None Robot Schematics ------------------ None Fabricated ------------ Nothing Alien Tech Used ----------------- None Achievements -------------- None Challenges ------------ None Game ------ Seed LobotomyGuidedDesublimator Manual? 0 Play Time 00:42:45 Cumulative 7.5 hours Start 2024.05.27 @ 09:42:37 End 2024.05.27 @ 10:33:26 Sessions 1 Manual Loads 0 Difficulty Adventurer Special Mode None Game No. 4 Rogue 0 Adventurer 4 Explorer 0 Win Type - Total 0 Types 0/0/0/0/0/0/0/0/0 Lore% 8 Gallery% 9 Achievement% 12 Wizard Run 0 Options --------- Layout 0 ASCII 0 Keyboard 0 Movement Mouse Keybinds 0 Fullscreen 0 Font 24/Smallcaps Map View 128x54 Zoom Use 0% Tactical HUD 0 Map Filters NONE Filters NONE Steam 1 RUN: c70f1ca4-f330-4edd-9786-bab574d06d55